bitfinex/quotes_BTCUSD_20250616
["timestamp","ask_amount","ask_price","bid_price","bid_amount"]
[1750092851971,1.1801826,107900.0,107890.0,0.24391129]
[1750092852424,1.1821826,107900.0,107890.0,0.04]
[1750092852879,1.1821826,107900.0,107890.0,0.23464268]
[1750092853316,1.1821826,107900.0,107890.0,0.04]
[1750092854200,1.1821826,107900.0,107890.0,0.22537399]
[1750092854420,1.1841826,107900.0,107890.0,0.22537399]
[1750092854667,1.1841826,107900.0,107890.0,0.04]
[1750092854883,6.2341826,107900.0,107890.0,0.04]
[1750092855332,1.3367826,107900.0,107890.0,0.22537399]
[1750092855590,0.65340105,107900.0,107890.0,0.25317939]
[1750092855803,0.80600105,107900.0,107890.0,0.26244791]
[1750092856037,0.79673399,107900.0,107890.0,0.25317956]
[1750092856259,1.35581802,107900.0,107890.0,0.04]
[1750092856470,1.34655044,107900.0,107890.0,0.04]
[1750092856953,1.34655044,107900.0,107880.0,0.42619117]
[1750092856954,0.2312226,107890.0,107880.0,0.42619117]
[1750092857173,0.84996839,107890.0,107880.0,0.44473002]
[1750092857396,0.85923683,107890.0,107880.0,0.24893002]
[1750092857612,0.99523683,107890.0,107880.0,0.24893002]
[1750092857818,0.99523683,107890.0,107880.0,0.20893002]
[1750092858031,0.99523683,107890.0,107880.0,0.24893002]
[1750092858257,0.99528403,107890.0,107880.0,0.24893002]
[1750092858903,0.99528403,107890.0,107880.0,0.25819923]
[1750092859112,0.99928403,107890.0,107880.0,0.24893002]
[1750092859336,0.19466055,107880.0,107870.0,0.01854065]
[1750092859565,0.34894809,107890.0,107880.0,0.23466072]
[1750092859801,0.26215688,107890.0,107880.0,0.26746826]
[1750092860021,0.47533601,107890.0,107880.0,0.30387826]
[1750092860238,0.28996193,107890.0,107880.0,0.30387826]
[1750092860444,0.29196193,107890.0,107880.0,0.30387826]
[1750092860688,0.47733592,107890.0,107880.0,0.28767826]
[1750092860889,0.48660453,107890.0,107880.0,0.24767826]
[1750092861136,0.50793592,107890.0,107880.0,0.21319931]
[1750092861360,0.21807897,107880.0,107870.0,0.19966295]
[1750092861587,0.84265581,107880.0,107870.0,0.23966312]
[1750092861805,0.84265581,107880.0,107870.0,0.24893336]
[1750092862240,0.84265581,107880.0,107870.0,0.26747359]
[1750092862469,0.85192502,107880.0,107870.0,0.27674306]
[1750092862688,0.66653368,107880.0,107870.0,0.27674263]
[1750092862918,0.66653368,107880.0,107870.0,0.23674263]
[1750092863134,0.67580315,107880.0,107870.0,0.27674263]
[1750092863355,0.67580315,107880.0,107870.0,0.24393294]
[1750092863356,0.87699466,107880.0,107870.0,0.24393294]
[1750092863587,0.87799466,107880.0,107870.0,0.23466312]
[1750092863802,0.87899466,107880.0,107870.0,0.23466312]
[1750092864022,0.87899466,107880.0,107870.0,0.24393336]
[1750092864523,0.86045598,107880.0,107870.0,0.04]
[1750092864967,0.86045598,107880.0,107870.0,0.22540836]
[1750092866325,0.86045598,107880.0,107870.0,0.23467877]
[1750092866553,0.20658836,107870.0,107860.0,0.21817902]
[1750092866784,0.98720456,107870.0,107860.0,0.26744978]
[1750092867007,0.78549612,107870.0,107860.0,0.27672045]
[1750092867221,0.48424355,107870.0,107860.0,0.25817902]
[1750092867432,0.99856026,107870.0,107860.0,0.26744978]
[1750092867643,1.00783016,107870.0,107860.0,0.23463725]
[1750092867862,0.99956026,107870.0,107860.0,0.24390835]
[1750092867997,1.01516026,107870.0,107860.0,0.24390835]
[1750092868225,1.0058901,107870.0,107860.0,0.24390835]
[1750092868434,1.0058901,107870.0,107860.0,0.25317936]
[1750092868660,0.9902901,107870.0,107860.0,0.26745012]
[1750092868864,0.28237737,107870.0,107860.0,0.27672079]
[1750092869075,0.99956017,107870.0,107860.0,0.27672079]
[1750092869276,0.99956017,107870.0,107860.0,0.26245012]
[1750092869635,1.01616017,107870.0,107860.0,0.26245012]
[1750092869815,1.01616017,107870.0,107860.0,0.25317936]
[1750092870218,1.0068901,107870.0,107860.0,0.25317936]
[1750092870480,0.99761977,107870.0,107860.0,0.22536606]
[1750092870687,0.99761977,107870.0,107860.0,0.23469682]
[1750092870688,1.00334936,107870.0,107860.0,0.23469682]
[1750092870923,1.00334936,107870.0,107860.0,0.24396801]
[1750092871560,1.00334936,107870.0,107860.0,0.25323911]
[1750092871769,0.98834936,107870.0,107860.0,0.26251012]
[1750092872174,0.98834936,107870.0,107860.0,0.27178105]
[1750092872323,0.99124958,107870.0,107860.0,0.22250978]
[1750092872534,1.00051991,107870.0,107860.0,0.26242978]
[1750092872941,1.00051991,107870.0,107860.0,0.27170062]
[1750092873130,1.00979032,107870.0,107860.0,0.27170062]
[1750092873324,0.66255155,107870.0,107860.0,0.27170019]
[1750092873529,1.00051991,107870.0,107860.0,0.27169976]
[1750092873730,1.00979032,107870.0,107860.0,0.26242909]
[1750092874177,1.00979032,107870.0,107860.0,0.25315833]
[1750092875357,1.00979032,107870.0,107860.0,0.24388783]
[1750092875685,0.9912501,107870.0,107860.0,0.23461682]
[1750092875912,0.9912501,107870.0,107860.0,0.24388801]
[1750092876748,0.9912501,107870.0,107860.0,0.25315911]
[1750092877124,0.9912501,107870.0,107860.0,0.26243004]
[1750092878162,0.13077728,107870.0,107860.0,0.27170071]
[1750092878400,0.48728578,107870.0,107860.0,0.27170071]
[1750092878604,0.49655619,107870.0,107860.0,0.27170071]
[1750092879511,0.48728638,107870.0,107860.0,0.26243004]
[1750092879747,0.47801631,107870.0,107860.0,0.27170088]
[1750092879957,0.46874607,107870.0,107860.0,0.26243004]
[1750092880177,0.98197977,107870.0,107860.0,0.03992]
[1750092880412,0.97270936,107870.0,107860.0,0.03992]
[1750092880832,1.06856858,107870.0,107860.0,0.03992]
[1750092881053,1.10006858,107870.0,107860.0,0.03992]
[1750092881478,1.34391936,107870.0,107860.0,0.03992]
[1750092882359,0.55428674,107860.0,107850.0,0.03992]
[1750092882572,1.17303253,107860.0,107850.0,0.03992]
[1750092882804,1.17303253,107860.0,107840.0,0.44626924]
[1750092882805,0.21021479,107850.0,107840.0,0.38125156]
[1750092883018,0.44810655,107850.0,107840.0,0.45398993]
[1750092883234,0.98915458,107850.0,107840.0,0.46326232]
[1750092883451,0.99842628,107850.0,107840.0,0.46326249]
[1750092883705,0.98915458,107850.0,107840.0,0.46326249]
[1750092883918,0.46665055,107850.0,107840.0,0.46326249]
[1750092884132,0.46669772,107850.0,107840.0,0.47253497]
[1750092884344,0.46669772,107850.0,107840.0,0.45826249]
[1750092884550,0.46769772,107850.0,107840.0,0.45826249]
[1750092885836,0.46769772,107850.0,107840.0,0.44898993]
[1750092886443,0.45842585,107850.0,107840.0,0.43044455]
[1750092886652,0.98092988,107850.0,107840.0,0.43971746]
[1750092887065,0.98092988,107850.0,107840.0,0.44899028]
[1750092887515,1.03821327,107850.0,107840.0,0.23576]
[1750092887731,1.03353122,107850.0,107840.0,0.23576]
[1750092887951,1.04873122,107850.0,107840.0,0.23576]
[1750092888175,0.98685783,107850.0,107840.0,0.19584]
[1750092888392,0.98685783,107850.0,107840.0,0.23576]
[1750092888609,0.19473285,107840.0,107830.0,0.20895718]
[1750092888813,0.81806864,107840.0,107830.0,0.24887718]
[1750092889427,0.81347864,107840.0,107830.0,0.24887718]
[1750092889636,0.81347864,107840.0,107830.0,0.2581506]
[1750092889843,0.81347864,107840.0,107830.0,0.26742394]
[1750092890280,0.81806864,107840.0,107830.0,0.2581506]
[1750092890673,0.81806864,107840.0,107830.0,0.24887718]
[1750092891766,0.64188143,107840.0,107830.0,0.25815052]
[1750092891986,0.09624176,107840.0,107830.0,0.30108377]
[1750092892212,0.34931861,107850.0,107840.0,0.24867789]
[1750092892433,0.82061044,107850.0,107840.0,0.25336789]
[1750092892666,0.82061113,107850.0,107840.0,0.25336789]
[1750092892880,0.62589626,107850.0,107840.0,0.25336789]
[1750092893406,0.61662421,107850.0,107840.0,0.25336789]
[1750092893682,0.62589608,107850.0,107840.0,0.25336789]
[1750092893885,0.62789608,107850.0,107840.0,0.25336789]
[1750092894533,0.62989608,107850.0,107840.0,0.29328789]
[1750092895504,0.62062404,107850.0,107840.0,0.29328789]
[1750092895919,0.629896,107850.0,107840.0,0.29328789]
[1750092897722,0.62062404,107850.0,107840.0,0.29328789]
[1750092898148,0.62989591,107850.0,107840.0,0.29328789]
[1750092898362,0.00404717,107850.0,107840.0,0.81579192]
[1750092898567,0.01331853,107850.0,107840.0,0.29328789]
[1750092899752,0.02258997,107850.0,107840.0,0.29328789]
[1750092900360,0.02259006,107850.0,107840.0,0.29328789]
[1750092900772,0.03186176,107850.0,107840.0,0.29328789]
[1750092900978,0.02259006,107850.0,107840.0,0.29328789]
[1750092901384,0.03186176,107850.0,107840.0,0.29328789]
[1750092901672,0.02259006,107850.0,107840.0,0.29328789]
[1750092901896,0.01331853,107850.0,107840.0,0.29328789]
[1750092902359,0.02259006,107850.0,107840.0,0.29328789]
[1750092902571,0.00404717,107850.0,107840.0,0.29328789]
[1750092902803,0.01331853,107850.0,107840.0,0.29328789]
[1750092903016,0.02258997,107850.0,107840.0,0.29328789]
[1750092903371,0.0318615,107850.0,107840.0,0.29328789]
[1750092903578,0.00404717,107850.0,107840.0,0.29328789]
[1750092903785,0.00404717,107850.0,107840.0,0.29311468]
[1750092903990,0.00404717,107850.0,107840.0,0.84294799]
[1750092905040,4.717e-05,107850.0,107840.0,0.84294799]
[1750092905245,4.717e-05,107850.0,107840.0,0.99538799]
[1750092907233,4.717e-05,107850.0,107840.0,1.00992884]
[1750092907453,4.717e-05,107850.0,107840.0,1.1061706]
[1750092909633,4.717e-05,107850.0,107840.0,1.64867463]
[1750092910079,4.717e-05,107850.0,107840.0,1.65067463]
[1750092910303,4.717e-05,107850.0,107840.0,1.65167463]
[1750092910760,4.717e-05,107850.0,107840.0,1.1291706]
[1750092912476,4.717e-05,107850.0,107840.0,1.1291306]
[1750092914228,4.717e-05,107850.0,107840.0,1.65163463]
[1750092915987,4.717e-05,107850.0,107840.0,0.9368106]
[1750092916197,4.717e-05,107850.0,107840.0,1.1291306]
[1750092916625,4.717e-05,107850.0,107840.0,0.9766906]
[1750092916854,4.717e-05,107850.0,107840.0,1.1291306]
[1750092919022,4.717e-05,107850.0,107840.0,0.9766906]
[1750092919408,4.717e-05,107850.0,107840.0,1.1290906]
[1750092919626,4.717e-05,107850.0,107840.0,0.9766906]
[1750092920048,4.717e-05,107850.0,107840.0,1.1290906]
[1750092920205,4.717e-05,107850.0,107840.0,0.9766906]
[1750092920415,4.717e-05,107850.0,107840.0,1.1290906]
[1750092921085,4.717e-05,107850.0,107840.0,0.9766906]
[1750092921263,4.717e-05,107850.0,107840.0,1.1290906]
[1750092922193,4.717e-05,107850.0,107840.0,1.3250106]
[1750092922953,4.717e-05,107850.0,107840.0,1.84751463]
[1750092924770,4.717e-05,107850.0,107840.0,1.84747463]
[1750092928350,4.717e-05,107850.0,107840.0,2.18747463]
[1750092928568,7.17e-06,107850.0,107840.0,2.26094385]
[1750092929465,7.17e-06,107850.0,107840.0,2.25994385]
[1750092929871,7.17e-06,107850.0,107840.0,2.28979085]
[1750092930080,7.17e-06,107850.0,107840.0,2.29479085]
[1750092931433,7.17e-06,107850.0,107840.0,2.68645085]
[1750092931649,7.17e-06,107850.0,107840.0,2.58869085]
[1750092934384,7.17e-06,107850.0,107840.0,2.39645085]
[1750092934578,7.17e-06,107850.0,107840.0,2.58857085]
[1750092935572,7.17e-06,107850.0,107840.0,1.35144279]
[1750092935779,7.17e-06,107850.0,107840.0,2.58857085]
[1750092936426,7.17e-06,107850.0,107840.0,2.48625085]
[1750092936627,0.0308,107890.0,107880.0,0.74070283]
[1750092936848,0.0308,107890.0,107880.0,0.93296488]
[1750092936849,0.03539,107890.0,107880.0,0.93296488]
[1750092937298,0.03539,107890.0,107880.0,0.74084488]
[1750092937512,0.03539,107890.0,107880.0,0.93296488]
[1750092937918,0.03739,107890.0,107880.0,0.93296488]
[1750092939295,0.04039,107890.0,107880.0,0.93296488]
[1750092942688,0.0358,107890.0,107880.0,0.94750573]
[1750092942871,0.005,107890.0,107880.0,0.94750573]
[1750092948573,0.005,107890.0,107880.0,0.95208573]
[1750092951703,0.005,107890.0,107880.0,0.98448573]
[1750092952978,0.005,107890.0,107880.0,1.50698976]
[1750092963454,0.00491366,107890.0,107880.0,1.50698976]
[1750092964438,0.00491366,107890.0,107880.0,1.50678976]
[1750092965355,0.00491366,107890.0,107880.0,1.80303152]
[1750092966180,0.00491366,107890.0,107880.0,0.75802346]
[1750092966383,0.00491366,107890.0,107880.0,1.80303152]
[1750092966600,0.00191366,107890.0,107880.0,1.80303152]
[1750092967191,0.0313,107910.0,107900.0,0.21815928]
[1750092967414,0.0313,107910.0,107900.0,0.89282331]
[1750092967655,0.03627,107910.0,107900.0,0.89282331]
[1750092968293,0.03927,107910.0,107900.0,0.89282331]
[1750092969296,0.04427,107910.0,107900.0,0.89282331]
[1750092969706,0.0393,107910.0,107900.0,0.89282331]
[1750092969907,0.0241,107910.0,107900.0,0.89282331]
[1750092970344,0.0241,107910.0,107900.0,0.21815928]
[1750092970547,0.0241,107910.0,107900.0,0.94708416]
[1750092970758,0.0241,107910.0,107900.0,0.95196416]
[1750092970962,0.0241,107910.0,107900.0,0.9803828]
[1750092971412,0.005,107910.0,107900.0,0.9803828]
[1750092971720,0.03537,107920.0,107910.0,0.21313953]
[1750092971901,0.03537,107920.0,107910.0,0.36529953]
[1750092972080,0.04463535,107920.0,107910.0,0.36529953]
[1750092972445,0.03537,107920.0,107910.0,0.36529953]
[1750092972743,0.04463535,107920.0,107910.0,0.36529953]
[1750092972976,0.03537,107920.0,107910.0,0.36529953]
[1750092973130,0.04963535,107920.0,107910.0,0.36529953]
[1750092973767,0.04037,107920.0,107910.0,0.36529953]
[1750092973972,0.04337,107920.0,107910.0,0.36529953]
[1750092974925,0.05263535,107920.0,107910.0,0.36529953]
[1750092975176,0.04337,107920.0,107910.0,0.36529953]
[1750092975927,0.05263552,107920.0,107910.0,0.40497953]
[1750092976383,0.05263552,107920.0,107910.0,0.25285953]
[1750092977047,0.04337,107920.0,107910.0,0.25285953]
[1750092977277,0.05263552,107920.0,107910.0,0.25285953]
[1750092977498,0.06190121,107920.0,107910.0,0.25285953]
[1750092977733,0.07116698,107920.0,107910.0,0.21313953]
[1750092977981,0.16740892,107920.0,107910.0,0.25785953]
[1750092978634,0.16740883,107920.0,107910.0,0.25785953]
[1750092979142,0.15814297,107920.0,107910.0,0.25785953]
[1750092979701,0.16740874,107920.0,107910.0,0.25785953]
[1750092980696,0.1766746,107920.0,107910.0,0.25785953]
[1750092981609,0.16740874,107920.0,107910.0,0.25785953]
[1750092983183,0.1766746,107920.0,107910.0,0.25785953]
[1750092983814,0.15814288,107920.0,107910.0,0.25785953]
[1750092984049,0.14887728,107920.0,107910.0,0.25785953]
[1750092984270,0.14887719,107920.0,107910.0,0.25785953]
[1750092984887,0.13961176,107920.0,107910.0,0.25785953]
[1750092986960,0.13961176,107920.0,107910.0,0.77978854]
[1750092987372,0.13464176,107920.0,107910.0,0.77978854]
[1750092987586,0.023,107920.0,107910.0,0.77978854]
[1750092988015,0.008,107920.0,107910.0,0.77978854]
[1750092989608,0.0236,107920.0,107910.0,0.77978854]
[1750092989823,0.008,107920.0,107910.0,0.77978854]
[1750092990687,0.008,107920.0,107910.0,0.25785953]
[1750092990894,0.008,107920.0,107910.0,0.78888789]
[1750092991138,0.0237,107920.0,107910.0,0.78888789]
[1750092992868,0.008,107920.0,107910.0,0.78888789]
[1750092993730,0.008,107920.0,107910.0,0.26695888]
[1750092993935,0.008,107920.0,107910.0,0.78888789]
[1750092994373,0.008,107920.0,107910.0,0.74916789]
[1750092994575,0.008,107920.0,107910.0,0.94084789]
[1750092994784,0.0236,107920.0,107910.0,0.94084789]
[1750092995016,0.0236,107920.0,107910.0,0.93174854]
[1750092996137,0.0236,107920.0,107910.0,0.21813953]
[1750092996340,0.0236,107920.0,107910.0,0.93170854]
[1750092996545,0.0236,107920.0,107910.0,0.40977953]
[1750092996756,0.56693901,107920.0,107910.0,0.21813953]
[1750092996888,0.56693901,107920.0,107910.0,0.40977953]
[1750092997296,0.57620453,107920.0,107910.0,0.40977953]
[1750092997696,0.57620444,107920.0,107910.0,0.40977953]
[1750092997907,0.58546996,107920.0,107910.0,0.40977953]
[1750092998105,0.05427543,107920.0,107910.0,0.40977953]
[1750092998370,0.57620444,107920.0,107910.0,0.40977953]
[1750092998604,0.58547004,107920.0,107910.0,0.40977953]
[1750092998747,0.58547013,107920.0,107910.0,0.40977953]
[1750092998949,0.58547004,107920.0,107910.0,0.40977953]
[1750092999243,0.57620444,107920.0,107910.0,0.40977953]
[1750092999452,0.58547004,107920.0,107910.0,0.40977953]
[1750093000829,0.06354103,107920.0,107910.0,0.40977953]
[1750093001077,0.58547004,107920.0,107910.0,0.40977953]
[1750093004767,0.59473581,107920.0,107910.0,0.40977953]
[1750093005179,0.58547004,107920.0,107910.0,0.40977953]
[1750093005585,0.59473581,107920.0,107910.0,0.40977953]
[1750093006019,0.58547004,107920.0,107910.0,0.40977953]
[1750093006231,0.06354103,107920.0,107910.0,0.40977953]
[1750093006441,0.59473581,107920.0,107910.0,0.40977953]
[1750093006856,0.58547004,107920.0,107910.0,0.40977953]
[1750093007058,0.59473581,107920.0,107910.0,0.40977953]
[1750093007264,0.59473573,107920.0,107910.0,0.40977953]
[1750093008422,0.57813573,107920.0,107910.0,0.40977953]
[1750093008840,0.56887004,107920.0,107910.0,0.40977953]
[1750093009048,0.56886996,107920.0,107910.0,0.40977953]
[1750093009424,0.57813565,107920.0,107910.0,0.40977953]
[1750093009629,0.57813556,107920.0,107910.0,0.40977953]
[1750093010909,0.56886996,107920.0,107910.0,0.40977953]
[1750093011143,0.57813565,107920.0,107910.0,0.40977953]
[1750093011409,0.56886996,107920.0,107910.0,0.40977953]
[1750093011587,0.57813565,107920.0,107910.0,0.40977953]
[1750093011929,0.56886996,107920.0,107910.0,0.40977953]
[1750093012127,0.57813565,107920.0,107910.0,0.40977953]
[1750093013096,0.57813565,107920.0,107910.0,0.40969953]
[1750093013322,1.70532224,107920.0,107900.0,0.19962447]
[1750093013568,1.70532224,107920.0,107900.0,0.18535681]
[1750093013569,1.19885418,107910.0,107900.0,0.18535681]
[1750093013782,0.0157,107900.0,107890.0,0.3793505]
[1750093014005,0.63868077,107900.0,107890.0,0.4189905]
[1750093014428,0.66665027,107900.0,107890.0,0.4189905]
[1750093014665,0.65721558,107900.0,107890.0,0.4189905]
[1750093015310,0.65821558,107900.0,107890.0,0.4189905]
[1750093015523,0.65340558,107900.0,107890.0,0.2670705]
[1750093015738,0.65821532,107900.0,107890.0,0.4189905]
[1750093016129,0.65921532,107900.0,107890.0,0.4189905]
[1750093016600,0.65921515,107900.0,107890.0,0.4189905]
[1750093017063,0.67765342,107900.0,107890.0,0.4189905]
[1750093018974,0.67284342,107900.0,107890.0,0.2670705]
[1750093019193,0.68348601,107900.0,107890.0,0.2670705]
[1750093019412,0.69275342,107900.0,107890.0,0.2670705]
[1750093020455,0.68348601,107900.0,107890.0,0.2670705]
[1750093020638,0.002,107900.0,107890.0,0.2973705]
[1750093020873,0.002,107900.0,107890.0,0.82282951]
[1750093021721,0.002,107900.0,107890.0,0.2274305]
[1750093021933,0.53319616,107900.0,107890.0,0.4189905]
[1750093022140,0.56231357,107900.0,107890.0,0.2669905]
[1750093022350,0.56884616,107900.0,107890.0,0.4139105]
[1750093022562,0.57811357,107900.0,107890.0,0.4189105]
[1750093022984,0.68362264,107900.0,107890.0,0.2274305]
[1750093023189,0.68362264,107900.0,107890.0,0.4189105]
[1750093023190,0.17088205,107900.0,107890.0,0.4189105]
[1750093023397,0.69281106,107900.0,107890.0,0.4189105]
[1750093024020,0.69281098,107900.0,107890.0,0.4189105]
[1750093024437,0.70207864,107900.0,107890.0,0.20889457]
[1750093024642,0.70207856,107900.0,107890.0,0.24345457]
[1750093024853,0.70207856,107900.0,107890.0,0.24845457]
[1750093025062,0.17088197,107900.0,107890.0,0.24845457]
[1750093025503,0.15242614,107900.0,107890.0,0.24845457]
[1750093025723,0.13177614,107900.0,107890.0,0.24845457]
[1750093025939,0.14589355,107900.0,107890.0,0.24845457]
[1750093026669,0.15500907,107900.0,107890.0,0.24845457]
[1750093027382,0.16427673,107900.0,107890.0,0.24845457]
[1750093027523,0.16427665,107900.0,107890.0,0.24845457]
[1750093027940,0.15500907,107900.0,107890.0,0.24845457]
[1750093028329,0.14574166,107900.0,107890.0,0.24845457]
[1750093028541,0.09824176,107900.0,107890.0,0.28015457]
[1750093028782,0.10750899,107900.0,107890.0,0.28326457]
[1750093028986,0.10750899,107900.0,107890.0,0.26696457]
[1750093029204,0.10750899,107900.0,107890.0,0.25156457]
[1750093029445,0.10750891,107900.0,107890.0,0.25156457]
[1750093029654,0.11677623,107900.0,107890.0,0.25156457]
[1750093029867,0.12604372,107900.0,107890.0,0.25156457]
[1750093030077,0.13541382,107900.0,107890.0,0.25156457]
[1750093031201,0.14468148,107900.0,107890.0,0.25156457]
[1750093031415,0.13541382,107900.0,107890.0,0.24845457]
[1750093031631,0.12614633,107900.0,107890.0,0.20889457]
[1750093031860,0.11677623,107900.0,107890.0,0.40033457]
[1750093032484,0.11677623,107900.0,107890.0,0.40509457]
[1750093032978,0.13541676,107900.0,107890.0,0.40509457]
[1750093033383,0.11677623,107900.0,107890.0,0.40509457]
[1750093033601,0.12604372,107900.0,107890.0,0.40509457]
[1750093033997,0.11677623,107900.0,107890.0,0.40509457]
[1750093034209,0.12604381,107900.0,107890.0,0.40509457]
[1750093034629,0.11677623,107900.0,107890.0,0.40509457]
[1750093034831,0.12604372,107900.0,107890.0,0.40509457]
[1750093035733,0.13531138,107900.0,107890.0,0.40033457]
[1750093035935,0.14438329,107900.0,107890.0,0.40033457]
[1750093037039,0.86119443,107900.0,107890.0,0.40029457]
[1750093037246,0.3664907,107900.0,107890.0,0.39102674]
[1750093037420,0.87940987,107900.0,107890.0,0.25272412]
[1750093037675,0.87014238,107900.0,107890.0,0.2434556]
[1750093037883,0.87014238,107900.0,107890.0,0.25772412]
[1750093038349,0.86814238,107900.0,107890.0,0.23420268]
[1750093038557,0.86387472,107900.0,107890.0,0.23420268]
[1750093038961,0.86387472,107900.0,107890.0,0.03956]
[1750093039166,0.85460697,107900.0,107890.0,0.22493399]
[1750093039351,0.85460697,107900.0,107890.0,0.23420268]
[1750093039871,0.85460697,107900.0,107890.0,0.2434712]
[1750093040439,0.85460697,107900.0,107890.0,0.25273964]
[1750093041147,0.85460697,107900.0,107890.0,0.2434712]
[1750093041518,0.85460697,107900.0,107890.0,0.23420268]
[1750093041645,0.85460697,107900.0,107890.0,0.04882869]
[1750093041859,0.85460697,107900.0,107890.0,0.23420268]
[1750093043030,0.85460697,107900.0,107890.0,0.24347129]
[1750093043597,0.85460697,107900.0,107890.0,0.25273981]
[1750093044856,0.85460697,107900.0,107890.0,0.24347129]
[1750093045191,0.86387412,107900.0,107890.0,0.24347129]
[1750093045396,0.10124176,107900.0,107890.0,0.78919422]
[1750093045603,0.12904372,107900.0,107890.0,0.30191773]
[1750093045982,0.33293603,107900.0,107890.0,0.30191773]
[1750093046209,0.12904363,107900.0,107890.0,0.30191773]
[1750093046639,0.13831129,107900.0,107890.0,0.30191773]
[1750093046853,0.12904363,107900.0,107890.0,0.30191773]
[1750093047240,0.13831129,107900.0,107890.0,0.30191773]
[1750093047543,0.12904363,107900.0,107890.0,0.30191773]
[1750093047756,0.13831129,107900.0,107890.0,0.30191773]
[1750093048096,0.12904363,107900.0,107890.0,0.30191773]
[1750093048568,0.13831129,107900.0,107890.0,0.30191773]
[1750093049913,0.12904363,107900.0,107890.0,0.28601773]
[1750093050125,0.13831129,107900.0,107890.0,0.28601773]
[1750093051130,0.66046416,107900.0,107890.0,0.28601773]
[1750093051659,0.66046408,107900.0,107890.0,0.28601773]
[1750093052579,0.66973174,107900.0,107890.0,0.28601773]
[1750093054003,0.66973174,107900.0,107890.0,0.24645773]
[1750093054148,0.66973174,107900.0,107890.0,0.28589773]
[1750093054521,0.66973174,107900.0,107890.0,0.24645773]
[1750093054768,0.66973174,107900.0,107890.0,0.28589773]
[1750093054963,0.66046408,107900.0,107890.0,0.28589773]
[1750093055362,0.11977614,107900.0,107890.0,0.30119773]
[1750093055567,0.10124176,107900.0,107890.0,0.8233506]
[1750093055983,0.005,107900.0,107890.0,0.8233506]
[1750093056185,0.005,107900.0,107890.0,0.83789145]
[1750093056607,0.005,107900.0,107890.0,1.36004432]
[1750093057041,0.005,107900.0,107890.0,0.8376403]
[1750093057246,0.003,107900.0,107890.0,0.8376403]
[1750093057457,0.17344688,107920.0,107910.0,0.22943953]
[1750093057675,0.17344688,107920.0,107910.0,0.40175953]
[1750093058602,0.1734468,107920.0,107910.0,0.40175953]
[1750093058902,0.18471223,107920.0,107910.0,0.40175953]
[1750093059103,0.16618145,107920.0,107910.0,0.40175953]
[1750093059271,0.002,107920.0,107910.0,0.40175953]
[1750093060426,0.004,107920.0,107910.0,0.40175953]
[1750093060590,0.01326535,107920.0,107910.0,0.40175953]
[1750093061000,0.02253078,107920.0,107910.0,0.40175953]
[1750093061608,0.01326535,107920.0,107910.0,0.40175953]
[1750093061809,0.02253087,107920.0,107910.0,0.40175953]
[1750093062207,0.01326535,107920.0,107910.0,0.40175953]
[1750093062431,0.02253087,107920.0,107910.0,0.40175953]
[1750093063252,0.03179647,107920.0,107910.0,0.40175953]
[1750093064083,0.04106224,107920.0,107910.0,0.40175953]
[1750093064290,0.03179647,107920.0,107910.0,0.40175953]
[1750093066012,0.02253087,107920.0,107910.0,0.40175953]
[1750093066711,0.04106224,107920.0,107910.0,0.40175953]
[1750093066946,0.02253087,107920.0,107910.0,0.40175953]
[1750093067174,0.03179656,107920.0,107910.0,0.40175953]
[1750093067459,0.03179647,107920.0,107910.0,0.40175953]
[1750093067665,0.02253087,107920.0,107910.0,0.40175953]
[1750093067868,0.5444325,107920.0,107910.0,0.40175953]
[1750093068072,0.5536981,107920.0,107910.0,0.40175953]
[1750093068278,0.56296387,107920.0,107910.0,0.40175953]
[1750093068509,0.5536981,107920.0,107910.0,0.40175953]
[1750093068902,0.56296379,107920.0,107910.0,0.40175953]
[1750093069536,0.5536981,107920.0,107910.0,0.40175953]
[1750093071800,0.56296387,107920.0,107910.0,0.40175953]
[1750093072206,0.56296387,107920.0,107910.0,0.36945953]
[1750093072914,0.5536981,107920.0,107910.0,0.36945953]
[1750093074027,0.56296379,107920.0,107910.0,0.36945953]
[1750093074217,0.57222965,107920.0,107910.0,0.36945953]
[1750093074416,0.56296379,107920.0,107910.0,0.21769953]
[1750093074678,0.56296379,107920.0,107910.0,0.40877953]
[1750093075360,0.5444325,107920.0,107910.0,0.40877953]
[1750093075583,0.55369819,107920.0,107910.0,0.42407953]
[1750093076058,0.03179638,107920.0,107910.0,0.42407953]
[1750093076279,0.04106215,107920.0,107910.0,0.42407953]
[1750093076491,0.04106207,107920.0,107910.0,0.42407953]
[1750093076727,0.004,107920.0,107910.0,0.42407953]
[1750093076956,0.52595251,107920.0,107910.0,0.42407953]
[1750093077208,0.52595251,107920.0,107910.0,0.43987953]
[1750093078286,0.53521786,107920.0,107910.0,0.43987953]
[1750093078508,0.52595251,107920.0,107910.0,0.43987953]
[1750093078733,0.004,107920.0,107910.0,0.43987953]
[1750093078971,0.52595251,107920.0,107910.0,0.43987953]
[1750093080560,0.004,107920.0,107910.0,0.43987953]
[1750093080680,0.004,107920.0,107910.0,0.44905752]
[1750093081772,0.004,107920.0,107910.0,0.97101003]
[1750093081977,0.004,107920.0,107910.0,0.44905752]
[1750093084493,0.004,107920.0,107910.0,0.43987953]
[1750093086917,0.52595251,107920.0,107910.0,0.43987953]
[1750093087381,0.004,107920.0,107910.0,0.43987953]
[1750093087617,0.52595251,107920.0,107910.0,0.43987953]
[1750093089723,0.004,107920.0,107910.0,0.43987953]
[1750093089946,0.004,107920.0,107910.0,0.96183204]
[1750093090183,0.004,107920.0,107910.0,0.43987953]
[1750093090801,0.52595251,107920.0,107910.0,0.43987953]
[1750093091731,0.004,107920.0,107910.0,0.43987953]
[1750093095706,0.004,107920.0,107910.0,0.96183204]
[1750093096558,0.004,107920.0,107910.0,0.96163204]
[1750093097814,0.004,107920.0,107910.0,0.77075204]
[1750093098017,0.004,107920.0,107910.0,0.94583204]
[1750093098229,0.004,107920.0,107910.0,0.40857953]
[1750093098660,0.52595251,107920.0,107910.0,0.40857953]
[1750093098866,0.53521794,107920.0,107910.0,0.40857953]
[1750093099077,0.52595251,107920.0,107910.0,0.40857953]
[1750093100494,0.53521794,107920.0,107910.0,0.40857953]
[1750093100717,0.52595251,107920.0,107910.0,0.40857953]
[1750093101719,0.53521794,107920.0,107910.0,0.40857953]
[1750093101902,0.52595251,107920.0,107910.0,0.40857953]
[1750093102105,0.53521794,107920.0,107910.0,0.40857953]
[1750093102309,0.52595251,107920.0,107910.0,0.40857953]
[1750093102617,0.53521794,107920.0,107910.0,0.40857953]
[1750093103309,0.54448354,107920.0,107910.0,0.21769953]
[1750093103524,0.53521794,107920.0,107910.0,0.40853953]
[1750093104183,0.52595251,107920.0,107910.0,0.40853953]
[1750093104611,0.004,107920.0,107910.0,0.40853953]
[1750093104818,0.01326543,107920.0,107910.0,0.44053953]
[1750093105541,0.004,107920.0,107910.0,0.44053953]
[1750093105742,0.01326535,107920.0,107910.0,0.44053953]
[1750093106402,0.00926337,107950.0,107940.0,0.0092644]
[1750093106624,0.00926337,107950.0,107940.0,0.43897373]